[Event "Late-Titled-Tuesday-Blitz-March-26-2024"]
[Site "Chess.com"]
[Date "2024.03.26"]
[Round "4"]
[White "chessamical"]
[Black "Eloist"]
[Result "0-1"]
[WhiteElo "2270"]
[BlackElo "2488"]
[TimeControl "180+1"]
[EndTime "14:39:39 PDT"]
[Termination "Eloist won by resignation"]

1. d4 {[%clk 0:03:00.9]} 1... e6 {[%clk 0:03:00.2]} 2. c4 {[%clk 0:02:57.1]}
2... Nf6 {[%clk 0:03:00]} 3. Nc3 {[%clk 0:02:53.3]} 3... Bb4 {[%clk 0:02:59.7]}
4. e3 {[%clk 0:02:40.5]} 4... O-O {[%clk 0:02:57.9]} 5. Bd2 {[%clk 0:02:40.2]}
5... c6 {[%clk 0:02:48.3]} 6. a3 {[%clk 0:02:31.2]} 6... Ba5 {[%clk 0:02:48]} 7.
c5 {[%clk 0:02:10.6]} 7... Bc7 {[%clk 0:02:43]} 8. Nf3 {[%clk 0:02:08.9]} 8...
d6 {[%clk 0:02:40.8]} 9. cxd6 {[%clk 0:02:08.1]} 9... Bxd6 {[%clk 0:02:38.7]}
10. Bd3 {[%clk 0:02:04.8]} 10... Nbd7 {[%clk 0:02:38.1]} 11. Qc2 {[%clk
0:01:50.8]} 11... e5 {[%clk 0:02:35.1]} 12. O-O {[%clk 0:01:39]} 12... exd4
{[%clk 0:02:32.8]} 13. exd4 {[%clk 0:01:27.4]} 13... h6 {[%clk 0:02:19.7]} 14.
Rfe1 {[%clk 0:01:27.5]} 14... Nb6 {[%clk 0:02:16.8]} 15. Ne5 {[%clk 0:01:25.3]}
15... Be6 {[%clk 0:02:05.2]} 16. Ng6 {[%clk 0:01:20.8]} 16... Re8 {[%clk
0:02:02.2]} 17. Nf4 {[%clk 0:01:20.5]} 17... Bxf4 {[%clk 0:01:55.2]} 18. Bxf4
{[%clk 0:01:19.8]} 18... Qxd4 {[%clk 0:01:54.6]} 19. Be5 {[%clk 0:01:20.3]}
19... Qd8 {[%clk 0:01:37.3]} 20. Rad1 {[%clk 0:01:18.5]} 20... Nbd5 {[%clk
0:01:32.1]} 21. Ne4 {[%clk 0:00:54.9]} 21... Nxe4 {[%clk 0:01:28.4]} 22. Bxe4
{[%clk 0:00:53.2]} 22... Qg5 {[%clk 0:01:24.6]} 23. f4 {[%clk 0:00:50.9]} 23...
Qh5 {[%clk 0:01:18.7]} 24. f5 {[%clk 0:00:38.4]} 24... Bd7 {[%clk 0:01:06.9]}
25. Bxd5 {[%clk 0:00:07.9]} 25... cxd5 {[%clk 0:01:06.2]} 26. f6 {[%clk
0:00:07.1]} 26... Rxe5 {[%clk 0:01:03.9]} 0-1

[Event "Late-Titled-Tuesday-Blitz-March-26-2024"]
[Site "Chess.com"]
[Date "2024.03.26"]
[Round "4"]
[White "Shankland"]
[Black "Thjop"]
[Result "1-0"]
[WhiteElo "2913"]
[BlackElo "2611"]
[TimeControl "180+1"]
[EndTime "14:39:40 PDT"]
[Termination "Shankland won by resignation"]

1. d4 {[%clk 0:03:00.9]} 1... d5 {[%clk 0:03:00]} 2. c4 {[%clk 0:03:00]} 2... c6
{[%clk 0:03:00.4]} 3. Nc3 {[%clk 0:02:59.2]} 3... Nf6 {[%clk 0:03:00.4]} 4. e3
{[%clk 0:02:59.9]} 4... e6 {[%clk 0:02:57.5]} 5. Nf3 {[%clk 0:03:00.1]} 5...
Nbd7 {[%clk 0:02:57.3]} 6. Be2 {[%clk 0:03:00.5]} 6... dxc4 {[%clk 0:02:54]} 7.
a4 {[%clk 0:02:59.6]} 7... Bd6 {[%clk 0:02:28.4]} 8. Nd2 {[%clk 0:02:59.2]} 8...
O-O {[%clk 0:02:21.5]} 9. Nxc4 {[%clk 0:02:57.7]} 9... Bc7 {[%clk 0:02:21.8]}
10. b3 {[%clk 0:02:58.1]} 10... e5 {[%clk 0:02:18.6]} 11. Ba3 {[%clk 0:02:58]}
11... Re8 {[%clk 0:02:18]} 12. d5 {[%clk 0:02:58]} 12... cxd5 {[%clk 0:02:12.1]}
13. Nxd5 {[%clk 0:02:58.2]} 13... Nxd5 {[%clk 0:02:08.6]} 14. Qxd5 {[%clk
0:02:58.3]} 14... Nb6 {[%clk 0:02:03.8]} 15. Qxd8 {[%clk 0:02:50.2]} 15... Rxd8
{[%clk 0:02:02.2]} 16. O-O {[%clk 0:02:45.6]} 16... Bd7 {[%clk 0:01:46.7]} 17.
Rfc1 {[%clk 0:02:43.4]} 17... Nxc4 {[%clk 0:01:43.8]} 18. Rxc4 {[%clk
0:02:26.6]} 18... Bc6 {[%clk 0:01:38.8]} 19. Bf3 {[%clk 0:02:26.8]} 19... Bd6
{[%clk 0:01:08]} 20. Bxc6 {[%clk 0:02:20.2]} 20... bxc6 {[%clk 0:01:05.1]} 21.
Bxd6 {[%clk 0:02:13.7]} 21... Rxd6 {[%clk 0:01:06]} 22. g3 {[%clk 0:02:13.1]}
22... h5 {[%clk 0:00:57.4]} 23. Rac1 {[%clk 0:02:12.6]} 23... Rb8 {[%clk
0:00:57.2]} 24. Rxc6 {[%clk 0:02:10.6]} 24... Rxc6 {[%clk 0:00:56.1]} 25. Rxc6
{[%clk 0:02:11.1]} 25... Rxb3 {[%clk 0:00:56.5]} 26. Rc8+ {[%clk 0:02:10.1]}
26... Kh7 {[%clk 0:00:55.8]} 27. Rc7 {[%clk 0:02:10.7]} 27... f6 {[%clk
0:00:50.4]} 28. h4 {[%clk 0:02:07.9]} 28... Ra3 {[%clk 0:00:35.3]} 29. Rxa7
{[%clk 0:02:07.9]} 29... Ra2 {[%clk 0:00:34.5]} 30. a5 {[%clk 0:02:07.6]} 30...
Ra3 {[%clk 0:00:34.3]} 31. a6 {[%clk 0:02:07.3]} 31... Ra2 {[%clk 0:00:34.6]}
32. Ra8 {[%clk 0:02:07.5]} 32... Kg6 {[%clk 0:00:34.7]} 33. e4 {[%clk
0:02:06.2]} 33... Ra4 {[%clk 0:00:33.1]} 34. a7 {[%clk 0:02:06.5]} 34... Ra2
{[%clk 0:00:32.6]} 35. Kf1 {[%clk 0:02:06.8]} 35... Ra3 {[%clk 0:00:28.8]} 36.
f4 {[%clk 0:02:05.3]} 36... Ra2 {[%clk 0:00:20.4]} 37. fxe5 {[%clk 0:02:05]}
37... fxe5 {[%clk 0:00:20.6]} 38. Ke1 {[%clk 0:02:05.6]} 38... Kh7 {[%clk
0:00:16]} 39. Kd1 {[%clk 0:02:05]} 39... Kg6 {[%clk 0:00:15.1]} 40. Kc1 {[%clk
0:02:05.1]} 40... Kh7 {[%clk 0:00:15.4]} 41. Kb1 {[%clk 0:02:05.5]} 41... Ra6
{[%clk 0:00:15]} 42. Kb2 {[%clk 0:02:06]} 42... Rb6+ {[%clk 0:00:13.5]} 43. Kc3
{[%clk 0:02:06.1]} 43... Ra6 {[%clk 0:00:13.7]} 44. Kc4 {[%clk 0:02:06]} 44...
Ra1 {[%clk 0:00:13.5]} 45. Kd5 {[%clk 0:02:06]} 45... Ra5+ {[%clk 0:00:10.6]}
46. Kd6 {[%clk 0:02:06.1]} 46... Kg6 {[%clk 0:00:08.6]} 47. Ke6 {[%clk
0:02:06.5]} 47... Ra1 {[%clk 0:00:03.3]} 48. Kxe5 {[%clk 0:02:06.5]} 48... Ra5+
{[%clk 0:00:02.9]} 49. Kd4 {[%clk 0:02:06.6]} 49... Ra1 {[%clk 0:00:03]} 50. e5
{[%clk 0:02:06.3]} 1-0

[Event "Late-Titled-Tuesday-Blitz-March-26-2024"]
[Site "Chess.com"]
[Date "2024.03.26"]
[Round "4"]
[White "GodzillaChessYoutube"]
[Black "ahmedkandiliii"]
[Result "1-0"]
[WhiteElo "2712"]
[BlackElo "2520"]
[TimeControl "180+1"]
[EndTime "14:39:57 PDT"]
[Termination "GodzillaChessYoutube won on time"]

1. c4 {[%clk 0:03:00.9]} 1... e5 {[%clk 0:02:57.8]} 2. e3 {[%clk 0:02:51.3]}
2... Nf6 {[%clk 0:02:55.9]} 3. Nc3 {[%clk 0:02:46.9]} 3... Nc6 {[%clk
0:02:53.4]} 4. Nge2 {[%clk 0:02:44.4]} 4... Bb4 {[%clk 0:02:50.2]} 5. a3 {[%clk
0:02:40.9]} 5... Bxc3 {[%clk 0:02:48.3]} 6. Nxc3 {[%clk 0:02:41.8]} 6... d5
{[%clk 0:02:47.9]} 7. cxd5 {[%clk 0:02:32]} 7... Nxd5 {[%clk 0:02:48.8]} 8. Bb5
{[%clk 0:02:30.1]} 8... O-O {[%clk 0:02:41.4]} 9. O-O {[%clk 0:02:25.4]} 9...
Be6 {[%clk 0:02:34.9]} 10. Ne4 {[%clk 0:02:18.3]} 10... Nb6 {[%clk 0:01:44.5]}
11. Qc2 {[%clk 0:02:06.4]} 11... a6 {[%clk 0:01:39.4]} 12. Bxc6 {[%clk 0:01:55]}
12... bxc6 {[%clk 0:01:40.3]} 13. Nc5 {[%clk 0:01:55.4]} 13... Bg4 {[%clk
0:01:13.9]} 14. f3 {[%clk 0:01:37.3]} 14... Bh5 {[%clk 0:01:13.4]} 15. b3 {[%clk
0:01:32.6]} 15... Bg6 {[%clk 0:01:08.7]} 16. Qc3 {[%clk 0:01:30.1]} 16... Re8
{[%clk 0:01:02.6]} 17. e4 {[%clk 0:01:23.5]} 17... Qd6 {[%clk 0:00:56.1]} 18.
Bb2 {[%clk 0:01:19.8]} 18... Rab8 {[%clk 0:00:37.5]} 19. Rfd1 {[%clk 0:01:18.5]}
19... Nd7 {[%clk 0:00:33.3]} 20. Nxa6 {[%clk 0:01:14.8]} 20... Rb6 {[%clk
0:00:30.2]} 21. Nb4 {[%clk 0:01:10.2]} 21... Reb8 {[%clk 0:00:26]} 22. d4 {[%clk
0:01:09.8]} 22... c5 {[%clk 0:00:12.1]} 23. dxc5 {[%clk 0:00:56.8]} 23... Qxc5+
{[%clk 0:00:13]} 24. Qxc5 {[%clk 0:00:57.1]} 24... Nxc5 {[%clk 0:00:13.9]} 25.
Bxe5 {[%clk 0:00:57.2]} 25... Nxb3 {[%clk 0:00:08.4]} 26. Rab1 {[%clk
0:00:53.9]} 1-0

[Event "Late-Titled-Tuesday-Blitz-March-26-2024"]
[Site "Chess.com"]
[Date "2024.03.26"]
[Round "4"]
[White "katharinareinecke"]
[Black "simaopdias"]
[Result "0-1"]
[WhiteElo "1986"]
[BlackElo "2295"]
[TimeControl "180+1"]
[EndTime "14:39:58 PDT"]
[Termination "simaopdias won on time"]

1. d4 {[%clk 0:03:00.9]} 1... Nf6 {[%clk 0:02:59.1]} 2. Nf3 {[%clk 0:03:00.3]}
2... d5 {[%clk 0:02:59.2]} 3. g3 {[%clk 0:02:59.8]} 3... e6 {[%clk 0:02:59.8]}
4. Bg2 {[%clk 0:02:57]} 4... Be7 {[%clk 0:03:00.7]} 5. O-O {[%clk 0:02:54.9]}
5... O-O {[%clk 0:03:01.6]} 6. c4 {[%clk 0:02:39.3]} 6... b6 {[%clk 0:03:02.5]}
7. Nc3 {[%clk 0:02:36.8]} 7... Bb7 {[%clk 0:03:03]} 8. b3 {[%clk 0:02:36]} 8...
Nbd7 {[%clk 0:03:02.6]} 9. Bb2 {[%clk 0:02:35.6]} 9... Rc8 {[%clk 0:03:02.7]}
10. Rc1 {[%clk 0:02:33.5]} 10... c5 {[%clk 0:03:02.4]} 11. dxc5 {[%clk
0:02:09.1]} 11... bxc5 {[%clk 0:03:03.3]} 12. cxd5 {[%clk 0:02:08.8]} 12... exd5
{[%clk 0:03:02.7]} 13. e3 {[%clk 0:02:07.1]} 13... Qa5 {[%clk 0:02:58.3]} 14.
Na4 {[%clk 0:01:57.7]} 14... Rfd8 {[%clk 0:02:53.1]} 15. Ne5 {[%clk 0:01:30.9]}
15... Nxe5 {[%clk 0:02:32.2]} 16. Bxe5 {[%clk 0:01:30.6]} 16... Qa6 {[%clk
0:02:27.8]} 17. Qc2 {[%clk 0:01:14.8]} 17... d4 {[%clk 0:02:21]} 18. Bxb7 {[%clk
0:00:37.7]} 18... Qxb7 {[%clk 0:02:20.4]} 19. exd4 {[%clk 0:00:37.9]} 19... cxd4
{[%clk 0:02:18.3]} 20. Qb2 {[%clk 0:00:38.2]} 20... Qe4 {[%clk 0:02:06.2]} 21.
Rfe1 {[%clk 0:00:35.3]} 21... Rxc1 {[%clk 0:02:06]} 22. Qxc1 {[%clk 0:00:35.2]}
22... Qd5 {[%clk 0:01:49.8]} 23. Bxd4 {[%clk 0:00:24.3]} 23... Bb4 {[%clk
0:01:45.8]} 24. Rd1 {[%clk 0:00:21.8]} 24... Ne4 {[%clk 0:01:20.4]} 25. Qc4
{[%clk 0:00:17.4]} 25... Qd6 {[%clk 0:01:12.4]} 26. Nb2 {[%clk 0:00:10]} 26...
Nd2 {[%clk 0:00:55.2]} 0-1

[Event "Late-Titled-Tuesday-Blitz-March-26-2024"]
[Site "Chess.com"]
[Date "2024.03.26"]
[Round "4"]
[White "TedBelanoff"]
[Black "Defenstrator"]
[Result "1-0"]
[WhiteElo "2203"]
[BlackElo "2485"]
[TimeControl "180+1"]
[EndTime "14:39:59 PDT"]
[Termination "TedBelanoff won by resignation"]

1. b4 {[%clk 0:03:00.9]} 1... e5 {[%clk 0:02:53.1]} 2. a3 {[%clk 0:03:00.2]}
2... Qh4 {[%clk 0:02:53]} 3. g3 {[%clk 0:02:59.2]} 3... Qd4 {[%clk 0:02:49]} 4.
Nc3 {[%clk 0:02:58.2]} 4... a5 {[%clk 0:02:46.5]} 5. Nf3 {[%clk 0:02:57.5]} 5...
Qb6 {[%clk 0:02:40.6]} 6. b5 {[%clk 0:02:45.1]} 6... Qe6 {[%clk 0:02:28.5]} 7.
e4 {[%clk 0:02:43]} 7... Bc5 {[%clk 0:02:23]} 8. Nd5 {[%clk 0:02:38]} 8... Qd6
{[%clk 0:02:16.1]} 9. Bb2 {[%clk 0:02:35.2]} 9... f6 {[%clk 0:02:15.3]} 10. d4
{[%clk 0:02:32.4]} 10... exd4 {[%clk 0:02:12.7]} 11. Nxd4 {[%clk 0:02:31.5]}
11... Ne7 {[%clk 0:02:07.4]} 12. c4 {[%clk 0:02:04.7]} 12... c6 {[%clk 0:01:49]}
13. Qh5+ {[%clk 0:01:51]} 13... g6 {[%clk 0:01:46.3]} 14. Nxf6+ {[%clk
0:01:49.9]} 14... Kd8 {[%clk 0:01:29]} 15. e5 {[%clk 0:01:49.2]} 15... Qc7
{[%clk 0:01:14.2]} 16. Qe2 {[%clk 0:01:41.1]} 16... d5 {[%clk 0:00:49.2]} 17.
exd6 {[%clk 0:01:33]} 17... Bxd6 {[%clk 0:00:48.2]} 18. Rd1 {[%clk 0:01:29.8]}
18... Rf8 {[%clk 0:00:28.8]} 19. Ne6+ {[%clk 0:01:25]} 19... Bxe6 {[%clk
0:00:28.8]} 20. Qxe6 {[%clk 0:01:25.1]} 20... Nf5 {[%clk 0:00:20.2]} 21. c5
{[%clk 0:01:15.4]} 21... Nd7 {[%clk 0:00:18.4]} 22. cxd6 {[%clk 0:01:12.9]}
22... Nxf6 {[%clk 0:00:18.5]} 23. dxc7+ {[%clk 0:01:09.3]} 23... Kxc7 {[%clk
0:00:19.2]} 24. Be5+ {[%clk 0:01:08.1]} 24... Kb6 {[%clk 0:00:19.5]} 25. bxc6
{[%clk 0:01:07.8]} 25... Rae8 {[%clk 0:00:18]} 26. Rb1+ {[%clk 0:01:07.2]} 26...
Ka7 {[%clk 0:00:14.6]} 27. Rxb7+ {[%clk 0:01:06.9]} 27... Ka8 {[%clk 0:00:15.3]}
28. Qc4 {[%clk 0:00:48.2]} 28... Rxe5+ {[%clk 0:00:15.6]} 29. Be2 {[%clk
0:00:48.4]} 1-0

[Event "Late-Titled-Tuesday-Blitz-March-26-2024"]
[Site "Chess.com"]
[Date "2024.03.26"]
[Round "4"]
[White "DraningWaterHi"]
[Black "VD_coach"]
[Result "0-1"]
[WhiteElo "2310"]
[BlackElo "2507"]
[TimeControl "180+1"]
[EndTime "14:40:00 PDT"]
[Termination "VD_coach won by resignation"]

1. d4 {[%clk 0:03:00.9]} 1... Nf6 {[%clk 0:02:59.6]} 2. Nf3 {[%clk 0:02:59.1]}
2... g6 {[%clk 0:02:59.5]} 3. g3 {[%clk 0:02:58.3]} 3... d6 {[%clk 0:02:59.9]}
4. c4 {[%clk 0:02:56.5]} 4... Bg7 {[%clk 0:03:00.8]} 5. Bg2 {[%clk 0:02:56.2]}
5... O-O {[%clk 0:02:56.3]} 6. O-O {[%clk 0:02:49.9]} 6... Nbd7 {[%clk 0:02:53]}
7. Nc3 {[%clk 0:02:45.7]} 7... e5 {[%clk 0:02:53]} 8. e4 {[%clk 0:02:30.2]} 8...
c6 {[%clk 0:02:24.8]} 9. h3 {[%clk 0:02:25.8]} 9... exd4 {[%clk 0:02:12.6]} 10.
Nxd4 {[%clk 0:02:20.4]} 10... a5 {[%clk 0:02:13]} 11. Be3 {[%clk 0:02:09.3]}
11... Re8 {[%clk 0:01:41.7]} 12. Qc2 {[%clk 0:02:06.1]} 12... Nc5 {[%clk
0:01:19.7]} 13. Rfe1 {[%clk 0:01:59.6]} 13... a4 {[%clk 0:01:18.8]} 14. Rad1
{[%clk 0:01:44.9]} 14... Qa5 {[%clk 0:01:13.5]} 15. f4 {[%clk 0:01:36.3]} 15...
Bd7 {[%clk 0:01:04.5]} 16. Nde2 {[%clk 0:01:21.4]} 16... Re7 {[%clk 0:00:58.3]}
17. Rxd6 {[%clk 0:01:17.8]} 17... Nfxe4 {[%clk 0:00:41.7]} 18. Nxe4 {[%clk
0:01:14.6]} 18... Qxe1+ {[%clk 0:00:40.5]} 19. Kh2 {[%clk 0:01:12.5]} 19... Nxe4
{[%clk 0:00:37.9]} 20. Bxe4 {[%clk 0:01:13.4]} 20... Rae8 {[%clk 0:00:34.9]} 21.
Bb6 {[%clk 0:00:17.2]} 21... Rxe4 {[%clk 0:00:30.2]} 22. Nc3 {[%clk 0:00:18.1]}
22... Bxc3 {[%clk 0:00:27.9]} 23. bxc3 {[%clk 0:00:14.9]} 23... Re2+ {[%clk
0:00:27.5]} 0-1

[Event "Late-Titled-Tuesday-Blitz-March-26-2024"]
[Site "Chess.com"]
[Date "2024.03.26"]
[Round "4"]
[White "TheCount"]
[Black "Sina_Movahed"]
[Result "1-0"]
[WhiteElo "2655"]
[BlackElo "3043"]
[TimeControl "180+1"]
[EndTime "14:40:01 PDT"]
[Termination "TheCount won by resignation"]

1. d4 {[%clk 0:02:56.7]} 1... Nf6 {[%clk 0:02:59.3]} 2. c4 {[%clk 0:02:56.2]}
2... g6 {[%clk 0:02:59.8]} 3. Nc3 {[%clk 0:02:53.8]} 3... Bg7 {[%clk 0:03:00.4]}
4. e4 {[%clk 0:02:53.9]} 4... d6 {[%clk 0:03:01]} 5. Be2 {[%clk 0:02:54.6]} 5...
O-O {[%clk 0:03:01.4]} 6. Bg5 {[%clk 0:02:55.3]} 6... Nbd7 {[%clk 0:02:58.9]} 7.
f4 {[%clk 0:02:51.2]} 7... c5 {[%clk 0:02:53.3]} 8. d5 {[%clk 0:02:51]} 8... b5
{[%clk 0:02:53.3]} 9. cxb5 {[%clk 0:02:50.2]} 9... a6 {[%clk 0:02:54]} 10. bxa6
{[%clk 0:02:37.1]} 10... Bxa6 {[%clk 0:02:54.9]} 11. Nf3 {[%clk 0:02:31]} 11...
Qa5 {[%clk 0:02:51.3]} 12. O-O {[%clk 0:02:29.6]} 12... Rfb8 {[%clk 0:02:51.3]}
13. Rb1 {[%clk 0:02:18.4]} 13... Ng4 {[%clk 0:02:17.5]} 14. Bxa6 {[%clk
0:02:07.2]} 14... Qxa6 {[%clk 0:02:18.4]} 15. Qd2 {[%clk 0:01:56.9]} 15... Nb6
{[%clk 0:01:58.1]} 16. h3 {[%clk 0:01:53.1]} 16... Nc4 {[%clk 0:01:56.7]} 17.
Qe2 {[%clk 0:01:52.8]} 17... Nf6 {[%clk 0:01:46.4]} 18. e5 {[%clk 0:01:50.3]}
18... Nh5 {[%clk 0:01:47]} 19. b3 {[%clk 0:01:31.7]} 19... Na3 {[%clk
0:01:47.1]} 20. Qxa6 {[%clk 0:01:30.8]} 20... Rxa6 {[%clk 0:01:48]} 21. Rbc1
{[%clk 0:01:26.2]} 21... Ng3 {[%clk 0:01:46.1]} 22. Bxe7 {[%clk 0:01:23.1]}
22... Nxf1 {[%clk 0:01:43.5]} 23. Kxf1 {[%clk 0:01:17.6]} 23... dxe5 {[%clk
0:01:35.7]} 24. fxe5 {[%clk 0:01:18.5]} 24... Bf8 {[%clk 0:01:36.3]} 25. Bxf8
{[%clk 0:01:12]} 25... Kxf8 {[%clk 0:01:37.2]} 26. Ne4 {[%clk 0:01:11]} 26...
Nb5 {[%clk 0:01:34.1]} 27. a4 {[%clk 0:01:06.8]} 27... Na3 {[%clk 0:01:07.4]}
28. Nxc5 {[%clk 0:01:03.6]} 28... Ra7 {[%clk 0:01:07.3]} 29. Nd4 {[%clk
0:00:48.4]} 29... Rb4 {[%clk 0:01:06.5]} 30. Nc6 {[%clk 0:00:45.6]} 30... Rf4+
{[%clk 0:01:06.5]} 31. Kg1 {[%clk 0:00:45.6]} 31... Ra8 {[%clk 0:01:06]} 32. e6
{[%clk 0:00:41.9]} 32... Rf5 {[%clk 0:00:59.6]} 33. e7+ {[%clk 0:00:40.6]} 33...
Ke8 {[%clk 0:00:58.6]} 34. d6 {[%clk 0:00:41.2]} 34... Rxc5 {[%clk 0:00:52.3]}
35. Rxc5 {[%clk 0:00:40.7]} 35... Nb1 {[%clk 0:00:51.2]} 36. Rd5 {[%clk
0:00:34.8]} 36... Kd7 {[%clk 0:00:47.8]} 37. Ne5+ {[%clk 0:00:35.1]} 37... Ke8
{[%clk 0:00:44.7]} 38. d7+ {[%clk 0:00:35]} 38... Kxe7 {[%clk 0:00:45.3]} 39.
Nc6+ {[%clk 0:00:35.9]} 39... Ke6 {[%clk 0:00:45.9]} 40. d8=Q {[%clk 0:00:36.8]}
40... Rc8 {[%clk 0:00:46.5]} 1-0

[Event "Late-Titled-Tuesday-Blitz-March-26-2024"]
[Site "Chess.com"]
[Date "2024.03.26"]
[Round "4"]
[White "Harsha_Bharathakoti"]
[Black "jefferyx"]
[Result "0-1"]
[WhiteElo "2904"]
[BlackElo "3107"]
[TimeControl "180+1"]
[EndTime "14:40:09 PDT"]
[Termination "jefferyx won on time"]

1. Nf3 {[%clk 0:02:59.7]} 1... d5 {[%clk 0:02:58.2]} 2. c4 {[%clk 0:02:59.1]}
2... d4 {[%clk 0:02:58.3]} 3. b4 {[%clk 0:02:59.4]} 3... Bg4 {[%clk 0:02:53.8]}
4. g3 {[%clk 0:02:53.6]} 4... Bxf3 {[%clk 0:02:51.7]} 5. exf3 {[%clk 0:02:54.5]}
5... e5 {[%clk 0:02:49]} 6. Bg2 {[%clk 0:02:42.8]} 6... Bxb4 {[%clk 0:02:18.9]}
7. f4 {[%clk 0:02:37.2]} 7... Nc6 {[%clk 0:02:18.2]} 8. fxe5 {[%clk 0:02:36.9]}
8... Nge7 {[%clk 0:02:18]} 9. O-O {[%clk 0:02:23.3]} 9... O-O {[%clk 0:02:17.9]}
10. f4 {[%clk 0:01:42.2]} 10... d3 {[%clk 0:02:18.2]} 11. Bb2 {[%clk 0:01:37.5]}
11... Nd4 {[%clk 0:02:18.6]} 12. Nc3 {[%clk 0:01:27.1]} 12... Bxc3 {[%clk
0:02:16]} 13. Bxc3 {[%clk 0:01:22.4]} 13... Ne2+ {[%clk 0:02:16.3]} 14. Kh1
{[%clk 0:01:23.2]} 14... Nf5 {[%clk 0:02:17]} 15. Rf3 {[%clk 0:01:07.2]} 15...
Qd7 {[%clk 0:02:06.3]} 16. Bb2 {[%clk 0:01:07]} 16... Rad8 {[%clk 0:02:02]} 17.
Qb3 {[%clk 0:01:07.3]} 17... Ned4 {[%clk 0:01:43.3]} 18. Qd1 {[%clk 0:00:31.5]}
18... Nxf3 {[%clk 0:01:43.1]} 19. Qxf3 {[%clk 0:00:32.4]} 19... c6 {[%clk
0:01:35]} 20. Bc3 {[%clk 0:00:32.1]} 20... Qe6 {[%clk 0:01:32.5]} 21. Qe4 {[%clk
0:00:31.8]} 21... h5 {[%clk 0:01:29.2]} 22. Bf3 {[%clk 0:00:27.6]} 22... g6
{[%clk 0:01:27.8]} 23. Rb1 {[%clk 0:00:27.6]} 23... Rd7 {[%clk 0:01:26.3]} 24.
a4 {[%clk 0:00:27.1]} 24... Rfd8 {[%clk 0:01:22.5]} 25. Bg2 {[%clk 0:00:20]}
25... Nd4 {[%clk 0:01:19.2]} 26. c5 {[%clk 0:00:08.7]} 26... Ne2 {[%clk
0:01:17.2]} 27. Qb4 {[%clk 0:00:06.7]} 27... h4 {[%clk 0:01:13.8]} 28. gxh4
{[%clk 0:00:05]} 28... Qg4 {[%clk 0:01:13.9]} 29. e6 {[%clk 0:00:04]} 29... Qxe6
{[%clk 0:01:12.5]} 30. Ba1 {[%clk 0:00:02.1]} 30... Qg4 {[%clk 0:01:01]} 31. Qb2
{[%clk 0:00:02.5]} 31... Rd4 {[%clk 0:01:01.2]} 32. Rf1 {[%clk 0:00:02]} 32...
Nxf4 {[%clk 0:00:59.9]} 33. Bf3 {[%clk 0:00:02.5]} 33... Qh3 {[%clk 0:01:00]}
34. Qc1 {[%clk 0:00:02.8]} 34... Ne2 {[%clk 0:00:58.5]} 35. Bxd4 {[%clk
0:00:01.5]} 35... Nxc1 {[%clk 0:00:54.7]} 0-1

[Event "Late-Titled-Tuesday-Blitz-March-26-2024"]
[Site "Chess.com"]
[Date "2024.03.26"]
[Round "4"]
[White "MikeSailer"]
[Black "tgpgoat"]
[Result "0-1"]
[WhiteElo "2085"]
[BlackElo "2384"]
[TimeControl "180+1"]
[EndTime "14:40:09 PDT"]
[Termination "tgpgoat won on time"]

1. d4 {[%clk 0:02:09.6]} 1... Nf6 {[%clk 0:01:55.8]} 2. Nf3 {[%clk 0:02:04.9]}
2... c5 {[%clk 0:01:56.7]} 3. Bf4 {[%clk 0:02:00]} 3... cxd4 {[%clk 0:01:57.6]}
4. Bxb8 {[%clk 0:01:58.8]} 4... Rxb8 {[%clk 0:01:56.4]} 5. Qxd4 {[%clk
0:01:59.2]} 5... e6 {[%clk 0:01:53.2]} 6. Qxa7 {[%clk 0:01:56.3]} 6... Qc7
{[%clk 0:01:53.7]} 7. Nc3 {[%clk 0:01:40.5]} 7... Bc5 {[%clk 0:01:53.1]} 8. Qa4
{[%clk 0:01:37.1]} 8... O-O {[%clk 0:01:52.4]} 9. e3 {[%clk 0:01:30.1]} 9... d5
{[%clk 0:01:52]} 10. Bb5 {[%clk 0:01:25.1]} 10... Ne4 {[%clk 0:01:48.1]} 11.
Nxe4 {[%clk 0:01:15.8]} 11... dxe4 {[%clk 0:01:49]} 12. Nd2 {[%clk 0:01:10.8]}
12... f5 {[%clk 0:01:44.9]} 13. O-O-O {[%clk 0:00:56.8]} 13... b6 {[%clk
0:01:43.4]} 14. Nb3 {[%clk 0:00:53.8]} 14... Bb7 {[%clk 0:01:34.3]} 15. Nxc5
{[%clk 0:00:44.8]} 15... Qxc5 {[%clk 0:01:34]} 16. Qc4 {[%clk 0:00:39.7]} 16...
Bd5 {[%clk 0:01:33.1]} 17. Qxc5 {[%clk 0:00:35.9]} 17... bxc5 {[%clk 0:01:34]}
18. Ba4 {[%clk 0:00:28.8]} 18... c4 {[%clk 0:01:33.3]} 19. b3 {[%clk 0:00:18.5]}
19... Rfc8 {[%clk 0:01:31.6]} 20. Kb2 {[%clk 0:00:18.3]} 20... Kf7 {[%clk
0:01:29.2]} 21. Rd4 {[%clk 0:00:16.1]} 21... Rc5 {[%clk 0:01:27.7]} 22. Rhd1
{[%clk 0:00:16]} 22... c3+ {[%clk 0:01:27.5]} 23. Kc1 {[%clk 0:00:10.3]} 23...
Ra8 {[%clk 0:01:27.9]} 24. Rb4 {[%clk 0:00:09.6]} 24... Kf6 {[%clk 0:01:26.8]}
25. Rb6 {[%clk 0:00:08.7]} 25... Ke5 {[%clk 0:01:18.4]} 26. Rd4 {[%clk
0:00:09.1]} 26... f4 {[%clk 0:01:15.4]} 27. exf4+ {[%clk 0:00:08.7]} 27... Kxd4
{[%clk 0:01:15.4]} 28. Rb4+ {[%clk 0:00:02.8]} 28... Bc4 {[%clk 0:01:15.8]} 29.
bxc4 {[%clk 0:00:02.3]} 29... e3 {[%clk 0:01:10.3]} 30. fxe3+ {[%clk 0:00:02.4]}
30... Kxe3 {[%clk 0:01:10.8]} 31. Bb3 {[%clk 0:00:02.8]} 31... Kxf4 {[%clk
0:01:08.8]} 32. Rb6 {[%clk 0:00:02.8]} 32... Re8 {[%clk 0:01:07.7]} 33. Kd1
{[%clk 0:00:02.9]} 33... e5 {[%clk 0:01:07.9]} 34. Ke1 {[%clk 0:00:03.1]} 34...
Ke3 {[%clk 0:01:08.3]} 35. a4 {[%clk 0:00:03.1]} 35... e4 {[%clk 0:01:08.5]} 36.
a5 {[%clk 0:00:03.5]} 36... Rxa5 {[%clk 0:01:08.3]} 0-1